Cogmind - Beta 10.2 @@@ ROGUE MODE // 2021.05.24 @ 13:57:55 Player: Plexion Result: Destroyed by Y-64 Sentinel with Wave Gun Performance ------------- Evolutions (3) 1500 Regions Visited (8) 1600 Robots Destroyed (44) 220 Value Destroyed (1500) 1500 Prototype IDs (28) 560 Alien Tech Used (0) 0 Bonus (300) 300 TOTAL SCORE: 5680 Bonus ------- Aligned with FarCom 300 Cogmind --------- Core Integrity 0/700 Matter 297/300 Energy 99/100 System Corruption 7% Temperature Cool (18) Movement Core (1650) Ox32 Location -7/Lower Caves Parts ------- > --- POWER (1) -------- (None) > --- PROPULSION (4) --- (None) > --- UTILITY (6) ------ High-capacity Storage Unit High-capacity Storage Unit High-capacity Storage Unit Advanced Signal Interpreter > --- WEAPON (2) ------- Assault Rifle > --- INVENTORY (28) --- Medium Storage Unit Medium Storage Unit High-capacity Storage Unit Advanced Targeting Computer Improved EM Pulse Cannon Improved EM Pulse Cannon Assault Rifle Assault Rifle Light Cannon Light Cannon Field Lobotomy Kit Greatsword Peak State ------------ > --- POWER ------------ Deuterium Engine > --- PROPULSION ------- Light Treads Light Treads Armored Treads > --- UTILITY ---------- High-capacity Storage Unit High-capacity Storage Unit High-capacity Storage Unit Advanced Signal Interpreter Kinecellerator Improved Light Armor Plating > --- WEAPON ----------- Light Cannon Rocket Launcher > --- INVENTORY -------- Improved Deuterium Engine Improved Heat Sink Medium Storage Unit Medium Storage Unit High-capacity Storage Unit Advanced Targeting Computer Weapon Shielding Improved EM Pulse Cannon Improved EM Pulse Cannon Assault Rifle Assault Rifle Assault Rifle Assault Rifle Gauss Rifle Light Cannon Light Cannon Field Lobotomy Kit Ripper Greatsword [Rating: 29] Favorites ----------- Power Ion Engine Engine Ion Engine Propulsion Light Treads Treads Light Treads Wheel Wheel Utility High-capacity Storage Unit Device Kinecellerator Storage High-capacity Storage Unit Processor Advanced Signal Interpreter Protection Improved Light Armor Plating Weapon Light Cannon Energy Gun Small Laser Ballistic Gun Assault Rifle Ballistic Cannon Light Cannon Launcher Rocket Launcher Slashing Weapon Ripper Build | -11 -10 -10 -10 -9 -8 -7 -7 -7 ------- Run | Scr Mat Min Exi Min Mat Fac Low Low Slots Evolved 6 | . . . . . 4 2 . . Power . | . . . . . . . . . Propulsion 2 | . . . . . 1 1 . . Utility 4 | . . . . . 3 1 . . Weapon . | . . . . . . . . . Parts Attached 44 | 6 7 . 2 . 4 8 5 12 Power 3 | 1 . . . . 1 . . 1 Engine 3 | 1 . . . . 1 . . 1 Core . | . . . . . . . . . Reactor . | . . . . . . . . . Propulsion 7 | 2 . . . . 1 3 . 1 Treads 6 | 2 . . . . 1 3 . . Leg . | . . . . . . . . . Wheel 1 | . . . . . . . . 1 Hover . | . . . . . . . . . Flight . | . . . . . . . . . Utility 12 | 1 2 . 2 . 2 2 1 2 Device 2 | . . . . . . 1 . 1 Storage 6 | 1 2 . 2 . 1 . . . Processor 1 | . . . . . 1 . . . Hackware . | . . . . . . . . . Protection 3 | . . . . . . 1 1 1 Artifact . | . . . . . . . . . Weapon 22 | 2 5 . . . . 3 4 8 Energy Gun 2 | 1 1 . . . . . . . Energy Cannon . | . . . . . . . . . Ballistic Gun 6 | 1 2 . . . . . . 3 Ballistic Cannon 8 | . 2 . . . . 2 2 2 Launcher 5 | . . . . . . 1 2 2 Special Weapon . | . . . . . . . . . Impact Weapon . | . . . . . . . . . Slashing Weapon 1 | . . . . . . . . 1 Piercing Weapon . | . . . . . . . . . Special Melee Weapon . | . . . . . . . . . Unidentified Prototypes . | . . . . . . . . . Parts Lost 20 | . 1 . . . . 3 1 15 Power 2 | . . . . . . . . 2 Propulsion 7 | . . . . . . 2 1 4 Utility 4 | . . . . . . . . 4 Weapon 7 | . 1 . . . . 1 . 5 Highest Loss Streak 11 | . 1 . . . . 3 1 11 Average Slot Usage (%) 91 | . 96 100 100 100 69 90 93 83 Engine 10 | . 14 14 14 14 9 7 7 6 Treads 24 | . 28 28 28 28 19 26 24 16 Device 3 | . . . . . . 6 7 6 Storage 24 | . 25 28 28 28 20 23 23 23 Processor 3 | . . . . . 2 7 7 7 Protection 2 | . . . . . . 2 7 6 Energy Gun 1 | . 8 . . . . . . . Ballistic Gun 2 | . 13 . . . . . . . Ballistic Cannon 16 | . 5 28 28 28 18 14 14 11 Naked Turns . | . . . . . . . . . Heaviest Build 118 | 12 43 43 75 75 111 116 118 118 Greatest Support 80 | 40 40 40 40 40 60 80 80 60 Greatest Overweight (x) 9 | . 1 1 1 1 2 1 1 9 Average Overweight (x) . | . . 1 1 1 1 1 1 1 Largest Inventory Capacity 28 | 6 16 16 20 20 28 28 28 28 Average Capacity 22 | 5 14 16 16 20 22 28 28 28 Most Carried 20 | 2 12 12 17 16 20 20 20 20 Average Carried 14 | . 5 12 12 15 17 17 18 18 Final Capacity 28 | 6 16 16 20 20 28 28 28 28 Final Carried 20 | 2 12 12 15 16 17 17 20 13 Class Distribution -------------------- 65% | Hauler-Mutant 34% | Mutant Dominant Class ---------------- Mutant | -10/Materials Mutant | -10/Mines Mutant | -10/Exiles Hauler-Mutant | -9/Mines Hauler-Mutant | -8/Materials Hauler-Mutant | -7/Factory Hauler-Mutant | -7/Lower Caves Hauler-Mutant | -7/Lower Caves Resources | -11 -10 -10 -10 -9 -8 -7 -7 -7 ----------- Run | Scr Mat Min Exi Min Mat Fac Low Low Matter Collected 1344 | 257 193 45 . 23 74 60 293 399 Remotely . | . . . . . . . . . Salvage Created 1202 | . 356 88 . . 147 88 195 328 Parts 70 | . 20 8 . . 7 6 11 18 Haulers Intercepted 2 | . 2 . . . . . . . Recyclers Shooed . | . . . . . . . . . Parts Field Recycled . | . . . . . . . . . Retrieved Matter . | . . . . . . . . . Parts Self-Destructed 24 | . . . . . . . 8 16 Prevented . | . . . . . . . . . Kills | -11 -10 -10 -10 -9 -8 -7 -7 -7 ------- Run | Scr Mat Min Exi Min Mat Fac Low Low Combat Hostiles Destroyed 41 | . 8 4 . . 3 5 9 12 Melee 1 | . . . . . . . . 1 Guns 7 | . 6 . . . . . . 1 Cannons 18 | . 2 4 . . 3 2 3 4 AOE 15 | . . . . . . 3 6 6 Classes Destroyed 8 | . 3 . . . 2 1 1 1 Hauler 2 | . 2 . . . . . . . Watcher 1 | . . . . . 1 . . . Swarmer 17 | . 3 2 . . . 3 3 6 Grunt 17 | . 5 2 . . 1 . 5 4 Brawler 2 | . . . . . . . 1 1 Duelist 1 | . . . . . . . . 1 Sentry 3 | . . . . . 2 1 . . Programmer 1 | . . . . . . 1 . . Best Kill Streak 4 | . 3 4 . . 2 3 4 3 Combat Bots Only 4 | . 3 4 . . 2 3 4 3 Max Kills in Single Turn 2 | . 1 1 . . 1 2 2 2 Gunslinging . | . . . . . . . . . Exploded 2 | . . . . . . 2 2 2 Melee 1 | . . . . . . . . 1 Uniques/NPCs Destroyed . | . . . . . . . . . Combat | -11 -10 -10 -10 -9 -8 -7 -7 -7 -------- Run | Scr Mat Min Exi Min Mat Fac Low Low Damage Taken 3785 | . 385 55 . . 193 411 242 2499 Core 767 | . 30 . . . 26 29 43 639 Absorbed by Shields . | . . . . . . . . . Core Remaining (%) 94 | 100 . . . 88 95 . . . Volleys Fired 116 | . 40 5 . . 9 11 15 36 Largest 2 | . 2 2 . . 2 2 2 2 Hottest 70 | . 70 70 . . 70 70 70 70 Shots Fired 210 | . 80 10 . . 18 20 24 58 Gun 86 | . 74 . . . . . . 12 Cannon 108 | . 6 10 . . 18 18 18 38 Launcher 16 | . . . . . . 2 6 8 Special . | . . . . . . . . . Kinetic 157 | . 43 10 . . 18 18 18 50 Thermal 37 | . 37 . . . . . . . Explosive 16 | . . . . . . 2 6 8 Electromagnetic . | . . . . . . . . . Robot Hit Streak 14 | . 8 4 . . 11 11 13 14 Robot Miss Streak 3 | . 3 1 . . 1 1 2 3 Penetration Max 1 | . . . . . . . . 1 Secondary Targets . | . . . . . . . . . Shots Hit Robots 147 | . 53 6 . . 13 16 15 44 Core Hits 74 | . 16 5 . . 7 9 15 22 Critical Hits 3 | . . . . . . 1 . 2 Critical Kills 1 | . . . . . . . . 1 Critical Parts Destroyed 2 | . . . . . . 1 . 1 Melee Attacks 11 | . . . . . . . . 11 Impact . | . . . . . . . . . Slashing 11 | . . . . . . . . 11 Piercing . | . . . . . . . . . Sneak Attacks . | . . . . . . . . . Combat Hostiles . | . . . . . . . . . Follow-up Attacks . | . . . . . . . . . Damage Inflicted 3772 | . 598 120 . . 204 488 952 1410 Guns 696 | . 510 . . . . . . 186 Cannons 1451 | . 88 119 . . 204 344 231 465 Explosions 1349 | . . . . . . 144 721 484 Melee 275 | . . . . . . . . 275 Ramming 1 | . . 1 . . . . . . Kinetic 1907 | . 358 119 . . 204 344 231 651 Thermal 240 | . 240 . . . . . . . Explosive 1349 | . . . . . . 144 721 484 Electromagnetic . | . . . . . . . . . Impact . | . . . . . . . . . Slashing 275 | . . . . . . . . 275 Piercing . | . . . . . . . . . Highest Corruption 7 | . . . . . . 2 2 7 Average Corruption 3 | . . . . . . 1 2 5 Corruption Purged . | . . . . . . . . . Effects 33 | . . . . . . 1 9 23 Message Errors 10 | . . . . . . 1 4 5 Matter Fused 4 | . . . . . . . . 4 Heat Flow Errors 3 | . . . . . . . . 3 Energy Discharges 5 | . . . . . . . 3 2 Data Loss (minor) 2 | . . . . . . . 2 . Misfires 4 | . . . . . . . . 4 Targeting Errors 3 | . . . . . . . . 3 Weapon Failures 2 | . . . . . . . . 2 Overload Shots . | . . . . . . . . . Overflow Damage 77 | . . . . . . . 21 56 Projectiles . | . . . . . . . . . Explosions 61 | . . . . . . . 21 40 Melee 16 | . . . . . . . . 16 Knockbacks 8 | . 1 2 . . 2 1 . 2 Impact . | . . . . . . . . . Kinetic 8 | . 1 2 . . 2 1 . 2 Secondary . | . . . . . . . . . Self-Inflicted Damage 133 | . . . . . . . . 133 Shots 3 | . . . . . . . . 3 Rammed 1 | . . 1 . . . . . . Targets Rammed 1 | . . 1 . . . . . . Kicked . | . . . . . . . . . Crushed . | . . . . . . . . . Highest Temperature 284 | . 90 27 . . 9 54 22 284 Average Temperature 46 | . 34 11 . . 4 26 13 83 Received Heat Transfer 972 | . 162 . . . 90 126 72 522 Siege Activations . | . . . . . . . . . Robots Corrupted . | . . . . . . . . . Combat Hostiles . | . . . . . . . . . Parts Fried . | . . . . . . . . . Impact Corruptions . | . . . . . . . . . Robots Melted . | . . . . . . . . . Combat Hostiles . | . . . . . . . . . Parts Melted . | . . . . . . . . . Heat Transferred 550 | . 550 . . . . . . . Parts Sabotaged . | . . . . . . . . . Parts Stolen . | . . . . . . . . . Parts Stripped . | . . . . . . . . . Power Chain Reactions . | . . . . . . . . . Missiles Intercepted . | . . . . . . . . . Alert | -11 -10 -10 -10 -9 -8 -7 -7 -7 ------- Run | Scr Mat Min Exi Min Mat Fac Low Low Peak Influence 185 | . 185 120 . . 151 121 . . Initial 5 | . . 5 . . . . . . Average 56 | . 64 88 . . 88 62 . . Maximum Alert Level . | . . . . . . . . . Low Security (%) 100 | 100 100 100 . 100 100 100 . . Level 1 . | . . . . . . . . . Level 2 . | . . . . . . . . . Level 3 . | . . . . . . . . . Level 4 . | . . . . . . . . . Level 5 . | . . . . . . . . . High Security . | . . . . . . . . . Max Security . | . . . . . . . . . Squads Dispatched 5 | . 3 . . . . 1 . 1 Investigation 1 | . 1 . . . . . . . Extermination 1 | . . . . . . 1 . . Reinforcement 2 | . 2 . . . . . . . Assault 1 | . . . . . . . . 1 Garrison . | . . . . . . . . . Intercept . | . . . . . . . . . Construction Impeded . | . . . . . . . . . Haulers Reinforced . | . . . . . . . . . Stealth | -11 -10 -10 -10 -9 -8 -7 -7 -7 --------- Run | Scr Mat Min Exi Min Mat Fac Low Low Distress Signals 3 | . 2 1 . . . . . . Communications Jammed . | . . . . . . . . . Distress Signals . | . . . . . . . . . Times Spotted 59 | . 15 5 . . 5 6 7 21 Peak Tracking Total 10 | . 4 4 . . 3 3 4 10 Tactical Retreats 6 | . . 1 . . 1 . . 4 Traps | -11 -10 -10 -10 -9 -8 -7 -7 -7 ------- Run | Scr Mat Min Exi Min Mat Fac Low Low Traps Triggered . | . . . . . . . . . Indirectly . | . . . . . . . . . Trap Hack Attempts . | . . . . . . . . . Triggered . | . . . . . . . . . Disarmed . | . . . . . . . . . Reprogrammed . | . . . . . . . . . Reused . | . . . . . . . . . Traps Extracted . | . . . . . . . . . Installed . | . . . . . . . . . Triggered 2 | . . . . . . . 2 . Machines | -11 -10 -10 -10 -9 -8 -7 -7 -7 ---------- Run | Scr Mat Min Exi Min Mat Fac Low Low Machines Disabled . | . . . . . . . . . Max in Single Turn . | . . . . . . . . . Machines Sabotaged . | . . . . . . . . . Garrisons Compromised . | . . . . . . . . . Overloaded Fab Kills . | . . . . . . . . . Fab Network Shutdowns . | . . . . . . . . . Hacking | -11 -10 -10 -10 -9 -8 -7 -7 -7 --------- Run | Scr Mat Min Exi Min Mat Fac Low Low Machines Accessed 9 | . 2 . 2 . 1 3 1 . Terminals 5 | . 2 . . . 1 2 . . Fabricators . | . . . . . . . . . Repair Stations . | . . . . . . . . . Recycling Units . | . . . . . . . . . Scanalyzers . | . . . . . . . . . Garrison Access 1 | . . . . . . 1 . . Total Hacks 23 | . 9 . 2 . 3 8 1 . Successful 14 | . 5 . 2 . 1 5 1 . Failed 9 | . 4 . . . 2 3 . . Catastrophic 1 | . . . . . . 1 . . Database Lockouts . | . . . . . . . . . Manual 12 | . 5 . 1 . 3 3 . . Terminals 18 | . 9 . . . 3 6 . . Fabricators . | . . . . . . . . . Repair Stations . | . . . . . . . . . Recycling Units . | . . . . . . . . . Scanalyzers . | . . . . . . . . . Garrison Access 2 | . . . . . . 2 . . Terminal Hacks 10 | . 3 . 2 . . 4 1 . Record 1 | . . . 1 . . . . . Prototype ID Bank 2 | . 1 . . . . 1 . . Open Door 1 | . . . . . . . 1 . Branch Access Points 1 | . . . . . . 1 . . Transport Status 1 | . 1 . . . . . . . Hauler Manifests 1 | . . . . . . 1 . . Zone Layout 2 | . 1 . . . . 1 . . EX-Prototype ID Bank 1 | . . . 1 . . . . . Fabricator Hacks . | . . . . . . . . . Repair Station Hacks . | . . . . . . . . . Recycling Unit Hacks . | . . . . . . . . . Scanalyzer . | . . . . . . . . . Garrison Access Hacks . | . . . . . . . . . Unauthorized Hacks 4 | . 2 . . . 1 1 . . Terminals 4 | . 2 . . . 1 1 . . Track 4 | . 2 . . . 1 1 . . Fabricators . | . . . . . . . . . Repair Stations . | . . . . . . . . . Recycling Units . | . . . . . . . . . Scanalyzers . | . . . . . . . . . Garrison Access . | . . . . . . . . . Data Cores Recovered . | . . . . . . . . . Used . | . . . . . . . . . Hacking Detections 5 | . 2 . . . 1 2 . . Full Trace Events 1 | . 1 . . . . . . . Feedback Events . | . . . . . . . . . Feedback Blocked . | . . . . . . . . . Robot Schematics Acquired . | . . . . . . . . . Robots Built . | . . . . . . . . . Matter . | . . . . . . . . . Time . | . . . . . . . . . Total Robot Build Rating . | . . . . . . . . . Part Schematics Acquired . | . . . . . . . . . Parts Built . | . . . . . . . . . Matter . | . . . . . . . . . Time . | . . . . . . . . . Total Part Build Rating . | . . . . . . . . . Parts Repaired . | . . . . . . . . . Time . | . . . . . . . . . Parts Recycled . | . . . . . . . . . Recycled Matter . | . . . . . . . . . Retrieved Matter . | . . . . . . . . . Retrieved Components . | . . . . . . . . . Parts Scanalyzed . | . . . . . . . . . Part Schematics Acquired . | . . . . . . . . . Parts Damaged . | . . . . . . . . . Bothacking | -11 -10 -10 -10 -9 -8 -7 -7 -7 ------------ Run | Scr Mat Min Exi Min Mat Fac Low Low Used RIF Installer . | . . . . . . . . . Robots Hacked . | . . . . . . . . . Non-combat . | . . . . . . . . . Combat . | . . . . . . . . . Robot Hacks Applied . | . . . . . . . . . Relay Couplers Released . | . . . . . . . . . Robots Rewired . | . . . . . . . . . Allies Hacked . | . . . . . . . . . Hacks Repelled . | . . . . . . . . . Allies | -11 -10 -10 -10 -9 -8 -7 -7 -7 -------- Run | Scr Mat Min Exi Min Mat Fac Low Low Total Allies . | . . . . . . . . . Largest Group . | . . . . . . . . . Highest-Rated Group . | . . . . . . . . . Highest-Rated Ally . | . . . . . . . . . Total Orders . | . . . . . . . . . Ally Attacks . | . . . . . . . . . Total Damage . | . . . . . . . . . Kills . | . . . . . . . . . Allies Corrupted . | . . . . . . . . . Allies Melted . | . . . . . . . . . Intel | -11 -10 -10 -10 -9 -8 -7 -7 -7 ------- Run | Scr Mat Min Exi Min Mat Fac Low Low Robot Analysis Total . | . . . . . . . . . Derelict Logs Recovered 2 | . . . . 1 . . . 1 Drone Launches . | . . . . . . . . . Drone Recoveries . | . . . . . . . . . Exploration | -11 -10 -10 -10 -9 -8 -7 -7 -7 ------------- Run | Scr Mat Min Exi Min Mat Fac Low Low Turns Passed 5200 | 82 861 201 695 514 489 679 906 773 Spaces Moved 2616 | 48 427 103 383 278 244 341 469 323 Core 4 | 4 . . . . . . . . Treads 2610 | 44 427 103 383 278 244 341 469 321 Legs . | . . . . . . . . . Wheels 2 | . . . . . . . . 2 Hover . | . . . . . . . . . Flight . | . . . . . . . . . Fastest Speed 50 | 50 160 180 180 180 180 180 182 170 Average Speed 180 | 150 167 180 180 180 183 180 182 198 Slowest Speed 205 | 160 180 180 180 180 200 182 183 205 Overloaded Moves . | . . . . . . . . . Propulsion Burnouts . | . . . . . . . . . Robots Hopped . | . . . . . . . . . Cave-ins Triggered . | . . . . . . . . . Exploration Rate (%) 43 | 4 74 32 70 83 24 9 61 33 Regions Visited 8 Branch Regions 5 Pre-discovered Areas 1 | . . . 1 . . . . . Known Exits Taken 3 | . . . . . 1 1 1 . Unknown Exits Taken 5 | 1 1 1 1 1 . . . . Scrap Searched 5 | . . . . 3 . . 2 . Spaces Dug 13 | . . . . . . . . 13 Terrain Destroyed 128 | . . . . . . 13 46 69 Melee . | . . . . . . . . . Projectile 1 | . . . . . . . . 1 AOE 127 | . . . . . . 13 46 68 Terrain Rammed . | . . . . . . . . . Walls Destroyed . | . . . . . . . . . Machines Disabled . | . . . . . . . . . Actions | -11 -10 -10 -10 -9 -8 -7 -7 -7 --------- Run | Scr Mat Min Exi Min Mat Fac Low Low Total 2867 | 55 495 108 389 292 269 384 492 383 Wait 49 | . 7 . . 14 7 20 1 . Move 2608 | 47 426 102 382 277 243 340 468 323 Hop . | . . . . . . . . . Pick Up 26 | 2 9 . 3 1 4 4 2 1 Fast Attach 14 | 6 4 . . . 1 2 1 . Attach 15 | . 1 . . . 2 4 . 8 Detach 4 | . 3 . . . . . 1 . Swap 15 | . 2 . 2 . 1 2 4 4 Drop 8 | . 3 . 2 . 2 1 . . Fire 116 | . 40 5 . . 9 11 15 36 Melee 11 | . . . . . . . . 11 Ram . | . . . . . . . . . Kick . | . . . . . . . . . Crush 1 | . . 1 . . . . . . Escape Stasis . | . . . . . . . . . Rewire . | . . . . . . . . . Trap . | . . . . . . . . . Miscellaneous . | . . . . . . . . . Route ------- -11/Scrapyard -10/Materials (discovered 2 exits: [*Mat] / [*Min]) -10/Mines -10/Exiles -9/Mines (discovered 2 exits: *Mat x2) -8/Materials (discovered 2 exits: *Fac / [*Sto]) -7/Factory (discovered 2 exits: *Low x2) -7/Lower Caves -7/Lower Caves (discovered 1 exit: [*Fac]) History --------- Turn | Location | Event 8 | -11/Scrapyard | Discovered new exit (range 14) 83 | -11/Scrapyard | Entered Materials 289 | -10/Materials | Discovered new exit (range 12) 317 | -10/Materials | Build established: Mutant 878 | -10/Materials | Discovered new exit (range 15) 944 | -10/Materials | Entered Mines 956 | -10/Mines | Met a Derelict bent on vengeance 1136 | -10/Mines | Deemed a non-threat by the Exiles lab entrance 1138 | -10/Mines | Discovered new exit (range 5) 1145 | -10/Mines | Entered Exiles 1189 | -10/Exiles | Met 8R-AWN 1219 | -10/Exiles | Met EX-HEX 1288 | -10/Exiles | Met EX-DEC 1322 | -10/Exiles | Learned location of Zion (-7) 1450 | -10/Exiles | Met EX-BIN 1471 | -10/Exiles | Aligned with FarCom system 1473 | -10/Exiles | Given EX-Vault access code 1520 | -10/Exiles | Opened EX-Vault 1540 | -10/Exiles | Found Field Lobotomy Kit 1578 | -10/Exiles | Warned to stay clear of 0b10 Research branches 1818 | -10/Exiles | Discovered new exit (range 14) 1840 | -10/Exiles | Left Exiles lab with Field Lobotomy Kit 1840 | -10/Exiles | Entered Mines 2068 | -9/Mines | Build established: Hauler-Mutant 2103 | -9/Mines | Received a Rocket Launcher from a helpful Derelict 2172 | -9/Mines | Discovered new exit (range 8) 2275 | -9/Mines | Learned Materials stockpile data 2275 | -9/Mines | Discovered new exit (range 9) 2354 | -9/Mines | Entered Materials 2354 | -8/Materials | Evolved 4 slots: Propulsion x1, Utility x3 2365 | -8/Materials | Discovered new exit (range 16) 2601 | -8/Materials | Discovered new exit (range 9) 2841 | -8/Materials | Identified exit to Factory 2843 | -8/Materials | Entered Factory 2843 | -7/Factory | Evolved 2 slots: Propulsion x1, Utility x1 3002 | -7/Factory | Identified exit to Lower Caves 3450 | -7/Factory | Lost 3 parts (2n1w) 3522 | -7/Factory | Entered Lower Caves 4384 | -7/Lower Caves | Discovered new exit (range 7) 4413 | -7/Lower Caves | Identified exit to Lower Caves 4428 | -7/Lower Caves | Entered another Lower Caves area 4699 | -7/Lower Caves | Lost 3 parts (1p1n1u) 4708 | -7/Lower Caves | Discovered new exit (range 14) 4759 | -7/Lower Caves | Learned location of 1 exit from Factory 5149 | -7/Lower Caves | Attracted the attention of an 0b10 outpost 5171 | -7/Lower Caves | Core integrity fell below 50% 5180 | -7/Lower Caves | Core integrity fell below 20% 5201 | -7/Lower Caves | Destroyed by Y-64 Sentinel with Wave Gun Last Messages --------------- 05185_ Slug penetrates Wall. 05186_ Acquired 4 matter. 05187_ Imp. Melee Analysis Suite fries itself beyond repair. 05187_ Slug penetrates Y-64 Sentinel. 05187_ Penetrated by Slug. 05188_ Acquired 4 matter. 05189_ Slug penetrates Y-64 Sentinel. 05190_ Acquired 4 matter. 05190_ Penetrated by Slug. 05190_ Gauss Rifle destroyed. 05190_ Wheel destroyed. 05192_ Acquired 10 matter. 05193_ Penetrated by Slug. 05194_ Acquired 6 matter. 05196_ Penetrated by Slug. 05196_ S-27 Virus destroyed. 05197_ Acquired 6 matter. 05199_ Penetrated by Slug. 05199_ Assault Rifle destroyed. 05200_ Acquired 3 matter. Map ----- +----------------------------------------------------+ | ?????????????????????????????????????????????????? | | ?????????????????????????????????????????????????? | | ?????????????????????????????????????????????????? | | ?????????????????????????????????????????????????? | | ?????????????????????????????????????????????????? | | ?????????????????????????????????????????????????? | | ?????????????????????????????????????????????????? | | ?????????????????????????????????????????????????? | | ?????????????????????????????????????????????????? | | ????????????????????? ?????????????????????????? | | ??????????????????? ?????????????????????????? | | ??????????????????? ?????????????????????????? | | ???????????????????# ?????????????????????????? | | ?????????????? ????# ????????????????????????? | | ????????????? ??## ????????????????????????? | | ????????????? ## ????????????????????????? | | ??????????????# ????????????????#######?? | | ?????????????## ??????????????### ##? | | ????????????## ???????????#### ## | | ???????????# ??????????## ? | | ??????????? ##???????## #??? | | ?????????? ##??????# #??? | | ???????????? ####??## #??? | | ???????????????????# *% #### * #?## | | ???????????????????# ####Y### ## ### | | ????????????????????????#@ "# ### ## | | ????????????????????????#gs"# #?# ## | | ????????????????????????g[ "# # ### ##?# | | ????????????????????????/ "# # ###?###??####### | | ??????????????????????? # "# # #??????????????# | | ??????????????????????? # "# # ??????????????# | | ??????????????????????###;### #########????# | | ??????????????????????? % #????# | | ????????????????????????## !#???# | | ?????????????????????????# ### ####%#???## | | ?????????????????????????? ??# ###??# ###??? | | ?????????????????????????# ####???## ##?? | | ?????????????????????????## #??????# #?? | | ??????????????????????????## ###??????# #?? | | ???????????????????????????# #?????????## #?? | | ??????????????????????????# ???????????## #?? | | ??????????????????????????# ???????????## ##? | | ??????????????????????????? ???????????## ## | | ???????????????????????????????????????# # | | ???????????????????????????????????????### | | ?????????????????????????????????????????# | | ?????????????????????????????????????????# | | ?????????????????????????????????????????## | | ??????????????????????????????????????????# | | ?????????????????????????????????????????# | +----------------------------------------------------+ Best States ------------- Heat Dissipation 48 Energy Generation 16 Energy Capacity 290 Matter Stores 300 Matter Capacity 300 Sight Range 16 Terrain Scan Density 10 Armor Coverage 150 Weapon Shielding 33 Evasion (%) 40 Recoil Reduction 4 Kinecelleration 30 Item Schematics ----------------- None Robot Schematics ------------------ None Fabricated ------------ Nothing Alien Tech Used ----------------- None Achievements -------------- None Challenges ------------ None Game ------ Seed ModifiedInsulationPod Manual? 0 Play Time 00:25:57 Cumulative 160.3 hours Start 2021.05.24 @ 13:18:56 End 2021.05.24 @ 13:57:55 Sessions 1 Manual Loads 0 Difficulty Rogue Special Mode None Game No. 206 Rogue 119 Adventurer 87 Explorer 0 Win Type - Total 4 Types 3/0/0/1/0/0/0/0/0 Lore% 62 Gallery% 71 Achievement% 58 Wizard Run 0 Options --------- ASCII 0 Keyboard 1 Movement Numpad Keybinds 0 Fullscreen 1 Font 18/Smallcaps Map View 76x50 Tactical HUD 1 Map Filters NONE Filters NONE Steam 1 RUN: a8d403e5-6dca-4ea2-a1bc-feead13a740e